bitfinex-derivatives/quotes_SOLF0:USTF0_20250130
["timestamp","ask_amount","ask_price","bid_price","bid_amount"]
[1738259778481,0.03034564,240.35,240.31,11.23106516]
[1738259778785,0.0264282,240.35,240.31,11.23405241]
[1738259779484,0.0264282,240.35,240.34,4.1609]
[1738259780788,11.20453765,240.5,240.38,4.1601]
[1738259780987,11.20453765,240.5,240.34,11.20453765]
[1738259781489,11.20453765,240.5,240.37,11.20453765]
[1738259781680,11.20453765,240.5,240.4,4.1598]
[1738259781879,0.02966697,240.46,240.41,0.02962634]
[1738259782586,4.1592,240.45,240.41,0.02962634]
[1738259783186,0.02966697,240.46,240.41,0.02962634]
[1738259783389,4.1593,240.44,240.41,0.02962634]
[1738259784788,0.02966697,240.46,240.41,0.02962634]
[1738259785190,0.02966697,240.46,240.44,4.1591]
[1738259786292,0.02966697,240.46,240.41,0.02962634]
[1738259786492,0.02966697,240.46,240.45,4.159]
[1738259792994,0.02966697,240.46,240.41,0.02962634]
[1738259793295,4.1591,240.45,240.41,0.02962634]
[1738259794095,4.1591,240.45,240.41,4.18922634]
[1738259794494,0.02966697,240.46,240.41,0.02962634]
[1738259794793,0.02966697,240.46,240.44,4.159]
[1738259796395,0.02966697,240.46,240.45,4.159]
[1738259801096,0.02966697,240.46,240.45,15.36353765]
[1738259801401,73.79073882,240.59,240.49,4.1583]
[1738259801595,4.1574,240.55,240.49,4.1583]
[1738259801800,73.79073882,240.59,240.48,11.20453765]
[1738259801997,1.3414,240.61,240.51,11.20453765]
[1738259802192,4.1562,240.62,240.51,11.20453765]
[1738259802396,0.03134967,240.58,240.55,4.1573]
[1738259803601,0.03134967,240.58,240.54,0.02800399]
[1738259805402,0.03134967,240.58,240.54,11.23254164]
[1738259805599,0.03134967,240.58,240.57,4.1569]
[1738259806904,0.03134967,240.58,240.55,4.1572]
[1738259807603,0.03134967,240.58,240.54,4.18540399]
[1738259807805,0.03134967,240.58,240.54,0.02800399]
[1738259808603,4.157,240.57,240.54,0.02800399]
[1738259810805,4.18814967,240.58,240.54,0.02800399]
[1738259811000,0.03134967,240.58,240.54,11.23254164]
[1738259812204,0.03134967,240.58,240.54,15.38994164]
[1738259812702,0.03134967,240.58,240.54,0.02800399]
[1738259813404,4.157,240.57,240.54,0.02800399]
[1738259813604,0.03134967,240.58,240.54,0.02800399]
[1738259815205,4.18814967,240.58,240.54,0.02800399]
[1738259817609,4.18814967,240.58,240.54,4.18540399]
[1738259818305,0.03134967,240.58,240.54,0.02800399]
[1738259818512,4.1571,240.56,240.54,0.02800399]
[1738259819009,4.1573,240.56,240.54,0.02800399]
[1738259819208,0.03134967,240.58,240.54,0.02800399]
[1738259819809,4.1573,240.55,240.54,0.02800399]
[1738259820111,7.16380394,240.55,240.48,7.16380394]
[1738259820411,7.16380394,240.55,240.46,7.16380394]
[1738259820611,1.3278,240.57,240.42,15.3254148]
[1738259820812,1.3278,240.57,240.42,156.69913702]
[1738259821312,0.02743459,240.52,240.47,0.02687707]
[1738259822415,0.02743459,240.52,240.51,11.1995148]
[1738259822610,2.8078,240.67,240.51,11.1995148]
[1738259822813,4.1569,240.58,240.52,4.1578]
[1738259823011,2.8078,240.67,240.52,4.1578]
[1738259823211,11.1995148,240.61,240.45,11.1995148]
[1738259823514,11.1995148,240.61,240.49,4.1583]
[1738259823713,0.0264079,240.55,240.51,0.02924141]
[1738259824515,4.1838079,240.55,240.51,0.02924141]
[1738259824815,0.0264079,240.55,240.51,4.18704141]
[1738259825307,0.0264079,240.55,240.51,11.22875621]
[1738259827114,0.0264079,240.55,240.51,0.02924141]
[1738259827313,4.1577,240.53,240.51,0.02924141]
[1738259827514,0.0264079,240.55,240.51,0.02924141]
[1738259828318,4.1576,240.54,240.51,0.02924141]
[1738259828617,0.0264079,240.55,240.51,0.02924141]
[1738259829521,0.0264079,240.55,240.51,11.22875621]
[1738259829922,0.0264079,240.55,240.54,4.1574]
[1738259832319,1.3896,240.66,240.54,11.1995148]
[1738259832623,1.3896,240.66,240.59,11.1995148]
[1738259833123,1.3896,240.66,240.6,4.1563]
[1738259833124,5.545,240.66,240.6,4.1563]
[1738259833323,0.02878642,240.65,240.61,0.02969777]
[1738259834626,4.18438642,240.65,240.61,0.02969777]
[1738259834927,0.02878642,240.65,240.61,0.02969777]
[1738259835123,4.1559,240.64,240.61,0.02969777]
[1738259835327,0.02878642,240.65,240.61,0.02969777]
[1738259836326,4.1561,240.62,240.61,0.02969777]
[1738259841725,0.02878642,240.65,240.61,0.02969777]
[1738259841921,0.02878642,240.65,240.62,4.1559]
[1738259843434,4.18438642,240.65,240.62,4.1559]
[1738259844428,4.18438642,240.65,240.61,0.02969777]
[1738259844824,0.02878642,240.65,240.61,0.02969777]
[1738259845132,0.02878642,240.65,240.61,4.18589777]
[1738259845731,0.02878642,240.65,240.61,0.02969777]
[1738259846030,0.02878642,240.65,240.62,11.1995148]
[1738259846722,0.02878642,240.65,240.64,4.1557]
[1738259848629,1.3792,240.79,240.62,12.6223148]
[1738259848831,1.3792,240.79,240.69,11.1995148]
[1738259849425,4.1535,240.77,240.72,4.1543]
[1738259849632,2.8625,240.87,240.72,11.1995148]
[1738259849832,0.0274345,240.77,240.72,11.22637047]
[1738259850134,2.8625,240.87,240.72,11.1995148]
[1738259850431,0.02625374,240.77,240.75,11.1995148]
[1738259850632,2.8625,240.87,240.75,11.1995148]
[1738259850830,0.02913495,240.78,240.76,4.1536]
[1738259851133,0.02785874,240.79,240.75,11.1995148]
[1738259851328,0.02785874,240.79,240.78,11.1995148]
[1738259851534,0.02785874,240.79,240.78,15.3528148]
[1738259852035,0.02785874,240.79,240.75,11.231378]
[1738259852234,0.02785874,240.79,240.75,0.0318632]
[1738259852736,4.1537,240.76,240.75,0.0318632]
[1738259854135,4.1535,240.77,240.75,0.0318632]
[1738259854527,0.02785874,240.79,240.75,0.0318632]
[1738259855632,4.18105874,240.79,240.75,0.0318632]
[1738259855834,0.02785874,240.79,240.75,0.0318632]
[1738259856235,4.1533,240.78,240.75,0.0318632]
[1738259856530,0.02785874,240.79,240.75,0.0318632]
[1738259857138,4.1536,240.77,240.75,0.0318632]
[1738259858639,4.18115874,240.79,240.75,0.0318632]
[1738259858831,0.02785874,240.79,240.75,0.0318632]
[1738259861634,4.1537,240.76,240.75,0.0318632]
[1738259866242,4.1537,240.76,240.75,0.0318632]
[1738259880748,4.1537,240.76,240.75,6.32e-05]
[1738259880953,4.1554,240.66,240.65,0.27855]
[1738259881156,11.17444679,240.76,240.65,0.27855]
[1738259881342,4.1542,240.73,240.65,0.27855]
[1738259881550,1.3221,240.78,240.65,0.27855]
[1738259881753,1.3221,240.78,240.66,11.17444679]
[1738259881946,0.03137945,240.74,240.7,4.1547]
[1738259882245,0.03137945,240.74,240.69,0.02621908]
[1738259883149,4.1542,240.73,240.69,4.18111908]
[1738259883348,0.03137945,240.74,240.69,0.02621908]
[1738259883554,0.03137945,240.74,240.69,11.20066587]
[1738259885047,0.03137945,240.74,240.69,15.35536587]
[1738259885652,0.03137945,240.74,240.69,11.20066587]
[1738259885958,0.03137945,240.74,240.7,4.1545]
[1738259886354,0.03137945,240.74,240.69,11.20066587]
[1738259886555,0.03137945,240.74,240.69,0.02621908]
[1738259886756,0.03137945,240.74,240.69,11.20066587]
[1738259887152,0.03137945,240.74,240.7,4.1546]
[1738259887380,0.03137945,240.74,240.69,0.02621908]
[1738259888650,4.1547,240.7,240.69,0.02621908]
[1738259891157,4.1554,240.66,240.65,0.27855]
[1738259892250,0.02852381,240.68,240.65,0.27855]
[1738259893857,0.02852381,240.68,240.66,4.1553]
[1738259894257,0.02852381,240.68,240.66,11.17444679]
[1738259894458,0.02852381,240.68,240.67,4.1552]
[1738259895857,0.02852381,240.68,240.66,15.32984679]
[1738259896861,0.02852381,240.68,240.66,11.17444679]
[1738259897056,0.02852381,240.68,240.65,0.27855]
[1738259897559,4.1554,240.67,240.65,0.27855]
[1738259898260,0.02852381,240.68,240.65,0.27855]
[1738259898958,4.1554,240.67,240.65,0.27855]
[1738259900762,4.1554,240.66,240.65,0.27855]
[1738259901662,0.02852381,240.68,240.65,0.27855]
[1738259901865,4.1552,240.67,240.65,0.27855]
[1738259902056,0.02852381,240.68,240.65,0.27855]
[1738259903764,0.02852381,240.68,240.65,4.43395]
[1738259907164,0.02852381,240.68,240.65,0.27855]
[1738259907366,4.1552,240.67,240.65,0.27855]
[1738259908561,4.1552,240.67,240.65,7.4347289]
[1738259911072,0.02852381,240.68,240.65,7.4347289]
[1738259912074,4.18362381,240.68,240.65,7.4347289]
[1738259912877,0.02852381,240.68,240.65,7.4347289]
[1738259913070,4.1552,240.67,240.65,7.4347289]
[1738259913385,0.02852381,240.68,240.65,7.4347289]
[1738259913567,0.02852381,240.68,240.65,0.27855]
[1738259913873,0.02852381,240.68,240.67,7.1561789]
[1738259916571,0.02852381,240.68,240.67,7.15474176]
[1738259918677,0.02852381,240.68,240.67,11.30994176]
[1738259919876,0.02852381,240.68,240.67,7.15474176]
[1738259920376,0.02852381,240.68,240.67,11.30994176]
[1738259922081,4.1538,240.75,240.67,7.15474176]
[1738259922273,4.1538,240.75,240.73,7.15474176]
[1738259922675,4.1538,240.75,240.71,7.15474176]
[1738259923177,4.18162361,240.75,240.71,7.18287198]
[1738259923376,4.1541,240.74,240.71,7.18287198]
[1738259923678,0.02782361,240.75,240.71,0.02813022]
[1738259923878,4.1543,240.72,240.71,0.02813022]
[1738259924073,0.02782361,240.75,240.71,7.18287198]
[1738259924779,4.18182361,240.75,240.71,11.33727198]
[1738259925079,0.02782361,240.75,240.71,7.18287198]
[1738259925574,0.02782361,240.75,240.73,7.15474176]
[1738259927074,0.02782361,240.75,240.71,7.18287198]
[1738259928282,0.02782361,240.75,240.72,4.1543]
[1738259928685,4.18162361,240.75,240.72,4.1543]
[1738259929283,4.18162361,240.75,240.71,11.33737198]
[1738259929686,4.18162361,240.75,240.73,7.15474176]
[1738259930285,0.02782361,240.75,240.73,7.15474176]
[1738259932088,0.02782361,240.75,240.71,7.18287198]
[1738259933292,4.154,240.74,240.71,7.18287198]
[1738259935295,4.18162361,240.75,240.71,7.18287198]
[1738259936989,0.02782361,240.75,240.71,7.18287198]
[1738259937191,0.02782361,240.75,240.71,0.02813022]
[1738259937889,4.1543,240.72,240.71,0.02813022]
[1738259940897,4.1549,240.69,240.65,0.27855]
[1738259941196,1.4287,240.77,240.65,0.27855]
[1738259941197,7.15474176,240.7,240.65,0.27855]
[1738259942095,4.1549,240.69,240.65,0.30971209]
[1738259942398,0.02784184,240.7,240.65,0.30971209]
[1738259942598,4.18254184,240.7,240.67,7.15474176]
[1738259942797,0.02784184,240.7,240.67,7.15474176]
[1738259943894,0.02784184,240.7,240.69,7.15474176]
[1738259945098,0.02784184,240.7,240.69,11.30964176]
[1738259945705,0.02784184,240.7,240.69,7.15474176]
[1738259948898,0.02784184,240.7,240.67,7.15474176]
[1738259949209,4.1549,240.69,240.65,7.46445385]
[1738259949502,0.02784184,240.7,240.67,7.15474176]
[1738259949698,0.02784184,240.7,240.67,11.30984176]
[1738259949997,0.02784184,240.7,240.69,7.15474176]
[1738259950403,0.02784184,240.7,240.69,11.30964176]
[1738259953712,7.15474176,240.82,240.74,4.154]
[1738259954012,7.15474176,240.82,240.74,11.30874176]
[1738259954811,0.02690872,240.8,240.76,0.02660479]
[1738259955210,4.1532,240.79,240.76,0.02660479]
[1738259956911,0.02690872,240.8,240.78,7.15474176]
[1738259958113,0.02690872,240.8,240.79,4.1531]
[1738259959206,0.02690872,240.8,240.78,7.15474176]
[1738259959407,0.02690872,240.8,240.78,11.30804176]
[1738259964613,0.02690872,240.8,240.78,7.15474176]
[1738259964814,0.02690872,240.8,240.79,4.1531]
[1738259968211,0.02690872,240.8,240.78,7.15474176]
[1738259969815,0.02690872,240.8,240.78,11.30794176]
[1738259971007,0.02690872,240.8,240.79,4.1531]
[1738259972817,0.02690872,240.8,240.78,11.30804176]
[1738259973016,0.02690872,240.8,240.78,7.15474176]
[1738259973417,0.02690872,240.8,240.79,4.1531]
[1738259974014,4.0306,240.94,240.85,4.152]
[1738259974215,2.6979,240.94,240.9,7.15474176]
[1738259974616,7.15474176,241.0,240.92,7.15474176]
[1738259975018,4.1501,240.97,240.92,7.15474176]
[1738259975217,0.02922814,240.98,240.94,0.02880384]
[1738259975819,4.1502,240.96,240.94,0.02880384]
[1738259976521,4.1504,240.95,240.94,0.02880384]
[1738259977414,4.1501,240.97,240.94,0.02880384]
[1738259977612,7.15474176,241.14,240.96,7.15474176]
[1738259977817,2.769,241.17,241.1,7.15474176]
[1738259978122,1.4109,241.19,241.12,7.15474176]
[1738259978715,0.02816162,241.18,241.13,0.02894919]
[1738259980219,4.1467,241.17,241.13,0.02894919]
[1738259981529,0.02816162,241.18,241.13,11.16699937]
[1738259982224,0.02816162,241.18,241.13,15.31419937]
[1738259982627,0.02816162,241.18,241.13,11.16699937]
[1738259982826,0.02816162,241.18,241.13,0.02894919]
[1738259983928,4.1468,241.16,241.13,0.02894919]
[1738259985622,4.147,241.15,241.13,0.02894919]
[1738259985818,4.147,241.15,241.01,11.13805018]
[1738259985819,12.49855018,241.15,241.01,11.13805018]
[1738259986022,12.49855018,241.15,241.0,66.009532]
[1738259986328,1.342,241.14,241.0,66.009532]
[1738259986538,1.342,241.14,241.0,2.68]
[1738259986827,4.1485,241.06,241.0,2.68]
[1738259987029,4.1485,241.06,241.05,0.03064667]
[1738259991836,4.1483,241.08,241.05,0.03064667]
[1738259992037,0.03079332,241.09,241.05,0.03064667]
[1738259992434,4.1485,241.06,241.05,0.03064667]
[1738259992937,11.13805018,241.07,240.95,0.30087]
[1738259993136,4.15,240.98,240.95,0.30087]
[1738259994232,0.02819019,240.99,240.95,0.30087]
[1738260001748,0.02819019,240.99,240.95,4.45117]
[1738260002744,0.02819019,240.99,240.98,7.13707018]
[1738260002949,0.02819019,240.99,240.98,11.28697018]
[1738260004450,7.13707018,241.1,240.98,7.13707018]
[1738260004650,4.1488,241.05,241.04,7.13707018]
[1738260005348,1.4462,241.11,241.04,7.13707018]
[1738260005552,1.4462,241.11,241.07,7.13707018]
[1738260005746,0.02760909,241.1,241.07,7.13707018]
[1738260006552,4.17540909,241.1,241.07,7.13707018]
[1738260006849,0.02760909,241.1,241.05,0.029876]
[1738260007050,0.02760909,241.1,241.06,4.1483]
[1738260007442,4.17540909,241.1,241.05,4.178476]
[1738260007852,0.02760909,241.1,241.05,0.029876]
[1738260008751,4.1481,241.09,241.05,0.029876]
[1738260008951,0.02760909,241.1,241.05,0.029876]
[1738260009447,4.1485,241.06,241.05,0.029876]
[1738260010553,4.1495,241.01,240.95,12.8568909]
[1738260010946,4.1492,241.02,240.95,12.8568909]
[1738260011352,2.7245,241.11,240.98,15.2922209]
[1738260011648,4.1488,241.04,241.02,0.0293989]
[1738260012850,4.149,241.03,241.02,0.0293989]
[1738260015357,4.1489,241.04,241.02,0.0293989]
[1738260015560,0.03032794,241.07,241.03,4.1489]
[1738260015755,0.03032794,241.07,241.02,0.0293989]
[1738260017756,0.03032794,241.07,241.03,4.149]
[1738260017958,0.03032794,241.07,241.04,11.1424209]
[1738260018162,0.03032794,241.07,241.02,0.0293989]
[1738260018362,0.03032794,241.07,241.03,4.1489]
[1738260019764,0.03032794,241.07,241.04,11.1424209]
[1738260019961,0.03032794,241.07,241.04,15.2912209]
[1738260020961,0.03032794,241.07,241.06,4.1485]
[1738260021459,0.03032794,241.07,241.04,11.1424209]
[1738260022858,0.03032794,241.07,241.02,0.0293989]
[1738260023763,4.17862794,241.07,241.02,0.0293989]
[1738260024860,4.1486,241.06,241.02,0.0293989]
[1738260025065,0.03032794,241.07,241.02,0.0293989]
[1738260026567,4.17882794,241.07,241.02,4.1784989]
[1738260027160,0.03032794,241.07,241.03,4.149]
[1738260027558,0.03032794,241.07,241.02,0.0293989]
[1738260029270,4.17862794,241.07,241.02,4.1785989]
[1738260029566,0.03032794,241.07,241.02,0.0293989]
[1738260029771,4.1489,241.04,241.02,0.0293989]
[1738260029967,0.03032794,241.07,241.02,0.0293989]
[1738260030164,4.149,241.03,241.02,0.0293989]
[1738260031563,7.13735211,241.04,240.97,151.19107433]
[1738260031768,4.1499,240.98,240.97,7.13735211]
[1738260032164,4.15,240.97,240.95,7.43822211]
[1738260032569,4.15,240.97,240.95,0.30087]
[1738260032864,4.1502,240.96,240.95,0.30087]
[1738260034366,4.1502,240.96,240.95,7e-05]
[1738260034767,4.1504,240.95,240.94,1.163e-05]
[1738260045975,15.30460379,240.95,240.94,1.163e-05]
[1738260046482,15.30460379,240.95,240.77,2.7964]
[1738260046483,4.1526,240.82,240.77,11.15420379]
[1738260047178,4.1526,240.82,240.78,5.5847]
[1738260047475,11.15420379,240.88,240.74,11.15420379]
[1738260047678,0.02736108,240.82,240.78,0.03052351]
[1738260048179,4.1531,240.79,240.78,0.03052351]
[1738260048571,4.1531,240.79,240.78,2.351e-05]
[1738260055686,15.30730379,240.79,240.78,2.351e-05]
[1738260059287,11.15420379,240.79,240.63,1.3467]
[1738260059494,4.1554,240.66,240.63,1.3467]
[1738260060798,4.1554,240.66,240.63,8.50449242]
[1738260060994,0.02771636,240.67,240.63,8.50449242]
[1738260062394,0.02771636,240.67,240.63,1.3467]
[1738260062592,4.1557,240.64,240.63,1.3467]
[1738260063596,4.1557,240.64,240.62,0.02660324]
[1738260063799,4.1559,240.63,240.62,0.02660324]
[1738260078208,11.18513557,240.64,240.55,1.3973]
[1738260078407,4.1574,240.55,240.51,145.49472222]
[1738260078608,11.18513557,240.59,240.51,144.05372222]
[1738260078808,11.18513557,240.56,240.51,144.05372222]
[1738260079004,4.1578,240.52,240.51,137.67922222]
[1738260082313,4.1581,240.5,240.47,1.372]
[1738260083015,0.02981701,240.54,240.47,1.372]
[1738260083413,201.18513557,240.65,240.49,11.18513557]
[1738260083612,201.18513557,240.65,240.52,11.18513557]
[1738260083907,11.18513557,240.68,240.52,11.18513557]
[1738260084114,4.1561,240.63,240.55,11.18513557]
[1738260084509,0.02726799,240.61,240.57,4.1848207]
[1738260086305,4.1555,240.66,240.6,4.1564]
[1738260086506,1.4234,240.75,240.61,11.18513557]
[1738260086908,4.1545,240.72,240.66,4.1553]
[1738260087209,4.1545,240.72,240.61,11.18513557]
[1738260087210,190.0,240.76,240.61,11.18513557]
[1738260087515,4.1547,240.7,240.66,0.02707316]
[1738260088521,0.02922755,240.71,240.66,0.02707316]
[1738260088719,4.1549,240.69,240.66,0.02707316]
[1738260089323,0.02922755,240.71,240.66,0.02707316]
[1738260089625,11.18513557,240.67,240.54,143.66595653]
[1738260089822,11.18513557,240.63,240.54,143.66595653]
[1738260090214,4.1573,240.55,240.54,143.66595653]
[1738260090621,0.03131397,240.57,240.52,0.02820467]
[1738260090924,4.1576,240.53,240.52,0.02820467]
[1738260094221,4.1576,240.53,240.52,4.67e-06]
[1738260096224,4.1576,240.53,240.41,143.66595653]
[1738260096225,4.1594,240.43,240.41,143.66595653]
[1738260096619,11.18513557,240.5,240.41,143.66595653]
[1738260097229,4.18821861,240.48,240.41,143.66595653]
[1738260097426,4.18821861,240.48,240.37,6.9473]
[1738260097427,0.02961861,240.48,240.37,6.9473]
[1738260097922,4.1595,240.43,240.37,6.9473]
[1738260098324,0.02710387,240.42,240.37,6.9473]
[1738260098526,0.02710387,240.42,240.37,1.4534]
[1738260098729,4.1598,240.41,240.37,1.4534]
[1738260098924,0.02710387,240.42,240.35,143.66595653]
[1738260099830,0.02710387,240.42,240.33,11.18513557]
[1738260100020,0.02710387,240.42,240.36,11.18513557]
[1738260100221,0.02710387,240.42,240.38,4.1601]
[1738260100427,0.02710387,240.42,240.36,11.18513557]
[1738260100725,15.34243557,240.56,240.5,4.1581]
[1738260101027,190.0,240.66,240.53,11.18513557]
[1738260101330,4.1386,240.67,240.53,11.18513557]
[1738260101627,4.1556,240.65,240.58,4.1567]
[1738260102021,0.02898793,240.64,240.59,0.02651987]
[1738260103125,4.1562,240.61,240.59,0.02651987]
[1738260105037,4.1573,240.55,240.47,14.04713557]
[1738260106235,0.03145064,240.53,240.49,4.1582]
[1738260106633,0.03145064,240.53,240.48,4.1583]
[1738260106933,0.03145064,240.53,240.47,14.04713557]
[1738260107131,0.03145064,240.53,240.5,4.1581]
[1738260107334,0.03145064,240.53,240.5,11.18513557]
[1738260107835,0.03145064,240.53,240.52,4.1578]
[1738260108134,12.62903557,240.66,240.5,11.18513557]
[1738260108329,12.62903557,240.66,240.54,4.1574]
[1738260108535,1.4439,240.66,240.53,11.18513557]
[1738260108731,1.4439,240.66,240.51,17.90182801]
[1738260109329,0.03145735,240.61,240.56,0.02998193]
[1738260110331,4.1567,240.59,240.56,0.02998193]
[1738260110530,0.03145735,240.61,240.56,0.02998193]
[1738260111926,4.18765735,240.61,240.56,4.18698193]
[1738260112328,0.03145735,240.61,240.56,0.02998193]
[1738260113238,4.1566,240.59,240.56,0.02998193]
[1738260113434,0.03145735,240.61,240.56,0.02998193]
[1738260114135,0.03145735,240.61,240.56,4.18698193]
[1738260114535,4.1564,240.6,240.56,4.18698193]
[1738260115345,4.18775735,240.61,240.57,4.1569]
[1738260115733,0.03145735,240.61,240.57,4.1569]
[1738260116543,0.03145735,240.61,240.56,0.02998193]
[1738260116739,4.1564,240.6,240.56,0.02998193]
[1738260116943,0.03145735,240.61,240.56,0.02998193]
[1738260120143,4.1564,240.6,240.56,4.18708193]
[1738260121148,0.03145735,240.61,240.56,4.18708193]
[1738260121348,4.1566,240.59,240.56,4.18708193]
[1738260121841,4.1566,240.59,240.56,0.02998193]
[1738260122847,0.03145735,240.61,240.56,0.02998193]
[1738260123850,0.03145735,240.61,240.56,8.193e-05]
[1738260124052,4.1569,240.57,240.56,8.193e-05]
[1738260125551,4.1592,240.44,240.43,143.66595653]
[1738260126044,4.159,240.45,240.43,143.66595653]
[1738260126352,17.90182801,240.58,240.43,143.66595653]
[1738260126752,0.02814569,240.46,240.43,143.66595653]
[1738260127054,4.10396605,240.53,240.37,22.06212801]
[1738260127248,4.0769,240.53,240.34,147.82075653]
[1738260127451,0.03168796,240.47,240.34,147.82075653]
[1738260127646,0.03168796,240.47,240.34,151.98155653]
[1738260128551,0.03168796,240.47,240.34,8.3156]
[1738260128747,0.03168796,240.47,240.34,19.52249804]
[1738260128952,4.1593,240.44,240.34,15.36169804]
[1738260129149,11.20689804,240.5,240.34,15.36169804]
[1738260129455,0.02951539,240.41,240.34,15.36169804]
[1738260129855,4.1606,240.36,240.34,1.3871]
[1738260130055,0.02951539,240.41,240.34,1.3871]
[1738260131155,4.1602,240.38,240.34,1.3871]
[1738260131354,4.1602,240.38,240.32,4.1611]
[1738260131950,4.1604,240.37,240.32,4.1611]
[1738260132749,4.1608,240.35,240.31,11.20689804]
[1738260132954,11.20689804,240.47,240.31,11.20689804]
[1738260133161,0.03093451,240.35,240.31,11.20689804]
[1738260133356,4.1606,240.37,240.32,4.1612]
[1738260133556,0.02676569,240.35,240.32,4.1612]
[1738260136754,0.02676569,240.35,240.31,15.36829804]
[1738260137255,0.02676569,240.35,240.31,11.20689804]
[1738260137558,0.02676569,240.35,240.32,4.1612]
[1738260140562,4.18756569,240.35,240.32,4.1612]
[1738260142063,0.02676569,240.35,240.31,11.20689804]
[1738260142264,0.02676569,240.35,240.34,15.36779804]
[1738260146561,4.1597,240.41,240.38,4.1602]
[1738260146760,4.1596,240.42,240.38,4.1602]
[1738260147368,11.20689804,240.5,240.38,4.1602]
[1738260147567,4.1597,240.41,240.38,4.1602]
[1738260147768,0.0264065,240.46,240.36,4.1604]
[1738260147973,4.1602,240.38,240.37,0.02710442]
[1738260148169,11.20689804,240.47,240.32,0.69]
[1738260148170,0.02808952,240.43,240.32,0.69]
[1738260148367,11.20689804,240.47,240.35,0.02781645]
[1738260148563,0.02658329,240.4,240.35,0.02781645]
[1738260148771,0.02658329,240.4,240.37,11.20689804]
[1738260148967,0.02658329,240.4,240.38,4.1601]
[1738260149575,0.02658329,240.4,240.39,4.16]
[1738260154679,0.02658329,240.4,240.39,11.33163583]
[1738260158880,0.02658329,240.4,240.39,7.17163583]
[1738260161486,4.18648329,240.4,240.39,7.17163583]
[1738260163179,0.02658329,240.4,240.39,11.33163583]
[1738260163988,0.02658329,240.4,240.37,7.17163583]
[1738260164184,0.02658329,240.4,240.35,7.19945228]
[1738260164588,4.1604,240.37,240.35,7.19945228]
[1738260169079,0.02658329,240.4,240.39,11.33163583]
[1738260169781,190.0,240.52,240.39,11.33163583]
[1738260169782,4.0769,240.53,240.39,7.17163583]
[1738260169984,2.7489,240.53,240.48,7.17163583]
[1738260170386,4.1582,240.5,240.48,7.17163583]
[1738260170585,80.97150359,240.57,240.48,7.17163583]
[1738260170883,4.18438777,240.55,240.5,7.1994793]
[1738260171280,0.02698777,240.55,240.5,7.1994793]
[1738260171481,4.1575,240.54,240.5,7.1994793]
[1738260173592,4.1575,240.54,240.52,7.17163583]
[1738260174193,0.02698777,240.55,240.52,7.17163583]
[1738260174693,0.02698777,240.55,240.5,7.1994793]
[1738260174999,4.1579,240.52,240.5,0.02784347]
[1738260176093,0.02698777,240.55,240.5,7.1994793]
[1738260176296,0.02698777,240.55,240.52,7.17163583]
[1738260176998,0.02698777,240.55,240.54,7.17163583]
[1738260177390,0.02698777,240.55,240.54,11.32903583]
[1738260177595,1.4095,240.64,240.54,7.17163583]
[1738260177895,1.4095,240.64,240.6,7.17163583]
[1738260178095,1.4341,240.68,240.6,7.17163583]
[1738260178696,0.0295976,240.66,240.62,0.02874523]
[1738260178992,0.0295976,240.66,240.57,11.18633545]
[1738260179193,4.1558,240.64,240.62,0.02827214]
[1738260179991,0.0295976,240.66,240.62,0.02827214]
[1738260180198,4.1559,240.63,240.62,0.02827214]
[1738260181096,4.1559,240.63,240.62,7.214e-05]
[1738260184199,4.1572,240.56,240.51,11.18633545]
[1738260184598,11.18633545,240.66,240.51,15.34413545]
[1738260184797,11.18633545,240.66,240.51,11.18633545]
[1738260184995,11.18633545,240.66,240.54,4.1573]
[1738260185508,0.03159679,240.62,240.58,0.0315462]
[1738260186299,0.03159679,240.62,240.58,11.21788165]
[1738260186506,1.4551,240.75,240.61,11.18633545]
[1738260186707,1.4551,240.75,240.65,11.18633545]
[1738260186902,1.4551,240.75,240.66,4.1554]
[1738260187104,4.1547,240.7,240.65,11.18633545]
[1738260187708,0.02934328,240.7,240.65,11.21731427]
[1738260188110,0.02934328,240.7,240.69,4.1549]
[1738260188504,1.446,240.84,240.68,11.18633545]
[1738260188708,1.446,240.84,240.72,11.18633545]
[1738260188904,1.446,240.84,240.76,11.18633545]
[1738260189411,190.0,240.95,240.71,2.68]
[1738260189412,1.4342,240.9,240.79,11.18633545]
[1738260189605,0.02718609,240.82,240.79,11.18633545]
[1738260189912,4.1518,240.85,240.79,11.18633545]
[1738260190109,0.02853733,240.83,240.79,11.18633545]
[1738260190308,0.02853733,240.83,240.78,0.03016305]
[1738260190612,4.1524,240.82,240.78,0.03016305]
[1738260192008,0.02853733,240.83,240.79,11.18633545]
[1738260192805,0.02853733,240.83,240.78,0.03016305]
[1738260193515,4.1527,240.82,240.78,0.03016305]